fUSD/lending_fUSD_20250201
["ID","MTS","AMOUNT","RATE_DAILY","PERIOD"]
[351182009,1738399847645,-718.1,0.0001671,2]
[351182010,1738399847654,-500.0,0.0001671,2]
[351182011,1738399847663,-569.97,0.0001671,2]
[351182012,1738399847672,-500.0,0.0001671,2]
[351182013,1738399847682,-1038.0,0.0001671,2]
[351182014,1738399847693,-500.0,0.0001671,2]
[351182015,1738399847703,-500.0,0.0001671,2]
[351182016,1738399847712,-500.0,0.0001671,2]
[351182017,1738399847722,-593.68,0.0001671,2]
[351182018,1738399847732,-953.41,0.0001671,2]
[351182019,1738399847741,-500.0,0.0001671,2]
[351182020,1738399847750,-500.0,0.0001671,2]
[351182021,1738399847760,-500.0,0.0001671,2]
[351182022,1738399847771,-500.0,0.0001671,2]
[351182023,1738399847781,-805.58,0.0001671,2]
[351182024,1738399847791,-500.0,0.0001671,2]
[351182025,1738399847800,-500.0,0.0001671,2]
[351182026,1738399847810,-604.32,0.0001671,2]
[351182027,1738399847819,-217.83,0.0001671,2]
[351182028,1738399847829,-837.34,0.0001671,2]
[351182029,1738399847838,-1283.13,0.0001671,2]
[351182030,1738399847848,-574.4901316,0.0001671,2]
[351182031,1738399847858,-500.0,0.0001671,2]
[351182032,1738399847868,-1335.88,0.0001671,2]
[351182033,1738399847877,-2610.26,0.0001671,2]
[351182034,1738399847887,-500.0,0.0001671,2]
[351182035,1738399847897,-4833.97,0.0001671,2]
[351182036,1738399847906,-500.0,0.0001671,2]
[351182037,1738399847916,-500.0,0.0001671,2]
[351182038,1738399847926,-500.0,0.0001671,2]
[351182039,1738399847935,-1465.33,0.00016711,2]
[351182040,1738399847944,-2282.45,0.00016711,2]
[351182041,1738399847954,-904.16,0.00016711,2]
[351182042,1738399847963,-1577.48,0.00016711,2]
[351182043,1738399847972,-500.0,0.00016711,2]
[351182044,1738399847982,-775.84,0.00016711,2]
[351182045,1738399847991,-1352.4,0.00016711,2]
[351182046,1738399848000,-1546.09,0.00016711,2]
[351182047,1738399848009,-1000.0,0.00016711,2]
[351182048,1738399848019,-1383.7,0.00016711,2]
[351182049,1738399848028,-502.04,0.00016711,2]
[351182050,1738399848037,-2390.63,0.00016711,2]
[351182051,1738399848047,-635.47,0.00016711,2]
[351182052,1738399848058,-500.0,0.00016711,2]
[351182053,1738399848067,-500.0,0.00016711,2]
[351182054,1738399848077,-500.0,0.00016712,2]
[351182055,1738399848087,-498.7604866,0.00016712,2]
[351182056,1738399848096,-533.29799627,0.00016712,2]
[351182057,1738399848105,-500.0,0.00016712,2]
[351182058,1738399848115,-500.0,0.00016712,2]
[351182059,1738399848124,-285.88880739,0.00016712,2]
[351182060,1738399848134,-500.0,0.00016712,2]
[351182061,1738399848144,-264.78761911,0.00016712,2]
[351182062,1738399848154,-500.0,0.00016712,2]
[351182063,1738399848164,-500.0,0.00016712,2]
[351182064,1738399848174,-500.0,0.00016712,2]
[351182065,1738399848184,-500.0,0.00016712,2]
[351182066,1738399848194,-500.0,0.00016712,2]
[351182067,1738399848203,-500.0,0.00016712,2]
[351182068,1738399848213,-500.0,0.00016712,2]
[351182069,1738399848223,-500.0,0.00016712,2]
[351182070,1738399848232,-500.0,0.00016712,2]
[351182071,1738399848242,-500.0,0.00016712,2]
[351182072,1738399848252,-500.0,0.00016712,2]
[351182073,1738399848262,-500.0,0.00016712,2]
[351182074,1738399848271,-500.0,0.00016712,2]
[351182075,1738399848281,-500.0,0.00016712,2]
[351182076,1738399848290,-500.0,0.00016712,2]
[351182077,1738399848300,-530.41347355,0.00016712,2]
[351182078,1738399848309,-375.45388758,0.00016712,2]
[351182079,1738399848319,-500.0,0.00016712,2]
[351182080,1738399848329,-528.19,0.00016712,2]
[351182081,1738399848339,-500.0,0.00016712,2]
[351182082,1738399848348,-500.0,0.00016712,2]
[351182083,1738399848358,-347.41,0.00016712,2]
[351182084,1738399848367,-500.0,0.00016712,2]
[351182085,1738399848376,-312.08,0.00016712,2]
[351182086,1738399848388,-500.0,0.00016712,2]
[351182087,1738399848398,-500.0,0.00016712,2]
[351182088,1738399848407,-500.0,0.00016712,2]
[351182089,1738399848417,-500.0,0.00016712,2]
[351182090,1738399848426,-500.0,0.00016712,2]
[351182091,1738399848435,-525.68,0.00016712,2]
[351182092,1738399848444,-500.0,0.00016712,2]
[351182093,1738399848453,-761.75,0.00016712,2]
[351182094,1738399848463,-500.0,0.00016712,2]
[351182095,1738399848473,-620.94,0.00016712,2]
[351182096,1738399848482,-500.0,0.00016712,2]
[351182097,1738399848492,-500.0,0.00016712,2]
[351182098,1738399848502,-500.0,0.00016712,2]
[351182099,1738399848511,-688.17,0.00016712,2]
[351182100,1738399848521,-520.63,0.00016712,2]
[351182101,1738399848530,-500.0,0.00016712,2]
[351182102,1738399848540,-500.0,0.00016712,2]
[351182103,1738399848549,-546.29,0.00016712,2]
[351182104,1738399848560,-500.0,0.00016712,2]
[351182105,1738399848570,-500.0,0.00016712,2]
[351182106,1738399848579,-500.0,0.00016712,2]
[351182107,1738399848589,-500.0,0.00016712,2]
[351182108,1738399848599,-500.0,0.00016712,2]
[351182109,1738399848609,-706.17,0.00016712,2]
[351182110,1738399848620,-500.0,0.00016712,2]
[351182111,1738399848629,-500.0,0.00016712,2]
[351182112,1738399848640,-500.0,0.00016712,2]
[351182113,1738399848661,-500.0,0.00016712,2]
[351182114,1738399848680,-500.0,0.00016712,2]
[351182115,1738399848691,-500.0,0.00016712,2]
[351182116,1738399848701,-500.0,0.00016712,2]
[351182117,1738399848711,-500.0,0.00016712,2]
[351182118,1738399848721,-825.63,0.00016712,2]
[351182119,1738399848731,-159.92450969,0.00016712,2]
[351182120,1738399848741,-598.4,0.00016712,2]
[351182121,1738399848750,-500.0,0.00016712,2]
[351182122,1738399848761,-500.0,0.00016712,2]
[351182123,1738399848771,-500.0,0.00016712,2]
[351182124,1738399848781,-198.81853311,0.00016712,2]
[351182125,1738399848791,-726.45,0.00016712,2]
[351182126,1738399848801,-500.0,0.00016712,2]
[351182127,1738399848811,-200.0,0.00016712,2]
[351182128,1738399848820,-500.0,0.00016712,2]
[351182129,1738399848830,-1157.25,0.00016712,2]
[351182130,1738399848839,-500.0,0.00016712,2]
[351182131,1738399848848,-500.0,0.00016712,2]
[351182132,1738399848857,-450.302109,0.00016712,2]
[351182133,1738399848867,-500.0,0.00016712,2]
[351182134,1738399848877,-500.0,0.00016712,2]
[351182135,1738399848886,-500.0,0.00016712,2]
[351182136,1738399848895,-500.0,0.00016712,2]
[351182137,1738399848905,-210.6770355,0.00016712,2]
[351182138,1738399848914,-623.01,0.00016712,2]
[351182139,1738399848924,-500.0,0.00016712,2]
[351182140,1738399848933,-500.0,0.00016712,2]
[351182141,1738399848943,-1237.86,0.00016712,2]
[351182142,1738399848954,-794.39,0.00016712,2]
[351182143,1738399848964,-500.0,0.00016712,2]
[351182144,1738399848973,-500.0,0.00016712,2]
[351182145,1738399848983,-500.0,0.00016712,2]
[351182146,1738399848992,-900.16,0.00016712,2]
[351182147,1738399849002,-1144.92,0.00016712,2]
[351182148,1738399849012,-500.0,0.00016712,2]
[351182149,1738399849021,-445.813525,0.00016712,2]
[351182150,1738399849031,-500.0,0.00016712,2]
[351182151,1738399849040,-1330.79,0.00016712,2]
[351182152,1738399849049,-873.52,0.00016712,2]
[351182153,1738399849059,-1097.36,0.00016712,2]
[351182154,1738399849068,-500.0,0.00016712,2]
[351182155,1738399849077,-911.22,0.00016712,2]
[351182156,1738399849087,-796.08,0.00016712,2]
[351182157,1738399849096,-500.0,0.00016712,2]
[351182158,1738399849106,-500.0,0.00016712,2]
[351182159,1738399849115,-500.0,0.00016712,2]
[351182160,1738399849124,-2074.04,0.00016712,2]
[351182161,1738399849134,-667.67,0.00016712,2]
[351182162,1738399849143,-500.0,0.00016712,2]
[351182163,1738399849153,-500.0,0.00016712,2]
[351182164,1738399849163,-1244.07,0.00016712,2]
[351182165,1738399849173,-500.0,0.00016712,2]
[351182166,1738399849184,-2707.78,0.00016712,2]
[351182167,1738399849194,-796.81,0.00016712,2]
[351182168,1738399849204,-1529.22,0.00016712,2]
[351182169,1738399849214,-500.0,0.00016712,2]
[351182170,1738399849224,-917.48,0.00016712,2]
[351182171,1738399849240,-500.0,0.00016712,2]
[351182172,1738399849250,-1471.11,0.00016712,2]
[351182173,1738399849259,-500.0,0.00016712,2]
[351182174,1738399849269,-1512.35,0.00016712,2]
[351182175,1738399849279,-500.0,0.00016712,2]
[351182176,1738399849290,-500.0,0.00016712,2]
[351182177,1738399849299,-818.52,0.00016712,2]
[351182178,1738399849309,-2864.2,0.00016712,2]
[351182179,1738399849320,-1217.27,0.00016712,2]
[351182180,1738399849330,-961.91,0.00016712,2]
[351182181,1738399849340,-1419.87,0.00016712,2]
[351182182,1738399849350,-500.0,0.00016712,2]
[351182183,1738399849360,-541.47,0.00016712,2]
[351182184,1738399849369,-580.81,0.00016712,2]
[351182185,1738399849380,-500.0,0.00016712,2]
[351182186,1738399849389,-340.95323274,0.00016712,2]
[351182187,1738399849399,-500.0,0.00016712,2]
[351182188,1738399849410,-500.0,0.00016712,2]
[351182189,1738399849421,-500.0,0.00016712,2]
[351182190,1738399849431,-902.94,0.00016712,2]
[351182191,1738399849442,-1453.2,0.00016712,2]
[351182192,1738399849452,-500.0,0.00016712,2]
[351182193,1738399849463,-500.0,0.00016712,2]
[351182194,1738399849472,-798.92,0.00016712,2]
[351182195,1738399849483,-2365.3,0.00016712,2]
[351182196,1738399849493,-590.40523543,0.00016712,2]
[351182197,1738399849503,-500.0,0.00016712,2]
[351182198,1738399849513,-779.0,0.00016712,2]
[351182199,1738399849523,-633.18,0.00016712,2]
[351182200,1738399849533,-507.66,0.00016712,2]
[351182201,1738399849543,-500.0,0.00016712,2]
[351182202,1738399849552,-1043.13,0.00016712,2]
[351182203,1738399849562,-500.0,0.00016712,2]
[351182204,1738399849573,-1567.89,0.00016712,2]
[351182205,1738399849583,-910.38,0.00016712,2]
[351182206,1738399849592,-500.0,0.00016712,2]
[351182207,1738399849602,-1273.65,0.00016712,2]
[351182208,1738399849611,-500.0,0.00016712,2]
[351182209,1738399849620,-879.55,0.00016712,2]
[351182210,1738399849630,-601.78,0.00016712,2]
[351182211,1738399849639,-1015.54,0.00016712,2]
[351182212,1738399849649,-500.0,0.00016712,2]
[351182213,1738399849658,-2958.79,0.00016712,2]
[351182214,1738399849668,-500.0,0.00016712,2]
[351182215,1738399849678,-761.06,0.00016712,2]
[351182216,1738399849691,-572.04,0.00016712,2]
[351182217,1738399849701,-500.0,0.00016712,2]
[351182218,1738399849711,-500.0,0.00016712,2]
[351182219,1738399849720,-500.0,0.00016712,2]
[351182220,1738399849731,-621.1,0.00016712,2]
[351182221,1738399849742,-3925.91,0.00016712,2]
[351182222,1738399849751,-500.0,0.00016712,2]
[351182223,1738399849761,-198.31,0.00016712,2]
[351182224,1738399849771,-462.77346186,0.00016716,2]
[351182225,1738399849781,-150.0,0.00016718,2]
[351182226,1738399849790,-1405.87757458,0.00016728,2]
[351182227,1738399849799,-150.0,0.00016732,2]
[351182228,1738399849809,-150.0,0.00016746,2]
[351182229,1738399849819,-172.98128728,0.00016749,2]
[351182230,1738399849828,-150.0,0.00016773,2]
[351182231,1738399849837,-150.0,0.00016792,2]
[351182232,1738399849846,-800.0,0.000168,6]
[351182233,1738399849856,-150.0,0.00016803,2]
[351182234,1738399849865,-1405.87757458,0.00016831,2]
[351182235,1738399849875,-13194.18316258,0.0001684,2]
[351182236,1738399849884,-1696.26,0.00016846,2]
[351182237,1738399849893,-2076.17,0.00016846,2]
[351182238,1738399849903,-500.0,0.00016846,2]
[351182239,1738399849912,-627.0,0.00016846,2]
[351182240,1738399849922,-1370.4,0.00016846,2]
[351182241,1738399849931,-2146.42,0.00016846,2]
[351182242,1738399849941,-1850.47,0.00016846,2]
[351182243,1738399849951,-1660.38,0.00016846,2]
[351182244,1738399849961,-750.93,0.00016846,2]
[351182245,1738399849971,-574.44,0.00016846,2]
[351182246,1738399849981,-813.13,0.00016846,2]
[351182247,1738399849990,-875.01,0.00016846,2]
[351182248,1738399850000,-691.33,0.00016846,2]
[351182249,1738399850009,-3841.69,0.00016846,2]
[351182250,1738399850019,-500.0,0.00016847,2]
[351182251,1738399850028,-597.53,0.00016847,2]
[351182252,1738399850038,-602.98,0.00016847,2]
[351182253,1738399850048,-365.62914145,0.00016847,2]
[351182254,1738399850057,-500.0,0.00016847,2]
[351182255,1738399850067,-500.0,0.00016847,2]
[351182256,1738399850077,-500.0,0.00016847,2]
[351182257,1738399850086,-500.0,0.00016847,2]
[351182258,1738399850095,-165.06423439,0.00016847,2]
[351182259,1738399850105,-643.59,0.00016847,2]
[351182260,1738399850114,-582.1,0.00016847,2]
[351182261,1738399850123,-678.42,0.00016847,2]
[351182262,1738399850132,-500.0,0.00016847,2]
[351182263,1738399850141,-500.0,0.00016847,2]
[351182264,1738399850150,-500.0,0.00016847,2]
[351182265,1738399850159,-500.0,0.00016847,2]
[351182266,1738399850169,-500.0,0.00016847,2]
[351182267,1738399850178,-662.8,0.00016847,2]
[351182268,1738399850187,-500.0,0.00016847,2]
[351182269,1738399850197,-500.0,0.00016847,2]
[351182270,1738399850206,-525.12,0.00016847,2]
[351182271,1738399850216,-500.0,0.00016847,2]
[351182272,1738399850226,-500.0,0.00016847,2]
[351182273,1738399850235,-548.04,0.00016847,2]
[351182274,1738399850245,-500.0,0.00016847,2]
[351182275,1738399850255,-618.08,0.00016847,2]
[351182276,1738399850265,-602.13,0.00016847,2]
[351182277,1738399850275,-535.9,0.00016847,2]
[351182278,1738399850284,-553.2,0.00016847,2]
[351182279,1738399850294,-500.0,0.00016847,2]
[351182280,1738399850303,-500.0,0.00016847,2]
[351182281,1738399850312,-817.74,0.00016847,2]
[351182282,1738399850323,-631.93,0.00016847,2]
[351182283,1738399850333,-605.11,0.00016847,2]
[351182284,1738399850343,-963.48,0.00016847,2]
[351182285,1738399850352,-511.13,0.00016847,2]
[351182286,1738399850361,-942.08,0.00016847,2]
[351182287,1738399850371,-822.79,0.00016847,2]
[351182288,1738399850381,-823.23,0.00016847,2]
[351182289,1738399850391,-1026.47,0.00016847,2]
[351182290,1738399850400,-2387.81,0.00016847,2]
[351182291,1738399850409,-2708.74,0.00016847,2]
[351182292,1738399850419,-500.0,0.00016847,2]
[351182293,1738399850428,-1668.57,0.00016847,2]
[351182294,1738399850437,-500.0,0.00016847,2]
[351182295,1738399850577,-2362.46,0.00016847,2]
[351182296,1738399850594,-683.25,0.00016847,2]
[351182297,1738399850606,-500.0,0.00016847,2]
[351182298,1738399850615,-2132.08,0.00016847,2]
[351182299,1738399850624,-743.46,0.00016847,2]
[351182300,1738399850634,-739.76,0.00016847,2]
[351182301,1738399850643,-1903.33,0.00016847,2]
[351182302,1738399850652,-500.0,0.00016847,2]
[351182303,1738399850662,-1879.52,0.00016847,2]
[351182304,1738399850671,-2018.52,0.00016847,2]
[351182305,1738399850682,-436.62,0.00016847,2]
[351182306,1738399850695,-791.88,0.00016847,2]
[351182307,1738399850704,-500.0,0.00016847,2]
[351182308,1738399850714,-2131.88,0.00016847,2]
[351182309,1738399850724,-500.0,0.00016847,2]
[351182310,1738399850735,-213.03890799,0.00016847,2]
[351182311,1738399850745,-636.58,0.00016847,2]
[351182312,1738399850755,-1092.53,0.00016847,2]
[351182313,1738399850767,-753.21,0.00016847,2]
[351182314,1738399850776,-500.0,0.00016847,2]
[351182315,1738399850786,-738.27,0.00016847,2]
[351182316,1738399850795,-538.96,0.00016847,2]
[351182317,1738399850805,-718.1,0.00016847,2]
[351182318,1738399850814,-500.0,0.00016847,2]
[351182319,1738399850824,-569.97,0.00016847,2]
[351182320,1738399850834,-500.0,0.00016847,2]
[351182321,1738399850844,-1038.0,0.00016847,2]
[351182322,1738399850853,-500.0,0.00016847,2]
[351182323,1738399850863,-500.0,0.00016847,2]
[351182324,1738399850872,-500.0,0.00016847,2]
[351182325,1738399850882,-593.68,0.00016847,2]
[351182326,1738399850892,-953.41,0.00016847,2]
[351182327,1738399850901,-500.0,0.00016847,2]
[351182328,1738399850911,-500.0,0.00016847,2]
[351182329,1738399850921,-540.15925001,0.00016847,2]
[351182330,1738399850930,-500.0,0.00016847,2]
[351182331,1738399850940,-805.58,0.00016847,2]
[351182332,1738399850949,-500.0,0.00016847,2]
[351182333,1738399850960,-500.0,0.00016847,2]
[351182334,1738399850970,-604.32,0.00016847,2]
[351182335,1738399850980,-837.34,0.00016847,2]
[351182336,1738399850990,-1283.13,0.00016847,2]
[351182337,1738399850999,-500.0,0.00016847,2]
[351182338,1738399851009,-1335.88,0.00016847,2]
[351182339,1738399851018,-2610.26,0.00016847,2]
[351182340,1738399851028,-500.0,0.00016847,2]
[351182341,1738399851038,-4833.97,0.00016847,2]
[351182342,1738399851048,-500.0,0.00016847,2]
[351182343,1738399851058,-500.0,0.00016847,2]
[351182344,1738399851068,-500.0,0.00016847,2]
[351182345,1738399851079,-1465.33,0.00016848,2]
[351182346,1738399851089,-2282.45,0.00016848,2]
[351182347,1738399851099,-904.16,0.00016848,2]
[351182348,1738399851109,-1577.48,0.00016848,2]
[351182349,1738399851118,-500.0,0.00016848,2]
[351182350,1738399851127,-775.84,0.00016848,2]
[351182351,1738399851137,-1352.4,0.00016848,2]
[351182352,1738399851146,-1546.09,0.00016848,2]
[351182353,1738399851155,-1000.0,0.00016848,2]
[351182354,1738399851165,-1383.7,0.00016848,2]
[351182355,1738399851174,-502.04,0.00016848,2]
[351182356,1738399851184,-2390.63,0.00016848,2]
[351182357,1738399851194,-635.47,0.00016848,2]
[351182358,1738399851204,-516.6246182,0.00016848,5]
[351182359,1738399851214,-500.0,0.00016849,2]
[351182360,1738399851223,-500.0,0.00016849,2]
[351182361,1738399851233,-500.0,0.00016849,2]
[351182362,1738399851243,-500.0,0.00016849,2]
[351182363,1738399851251,-500.0,0.00016849,2]
[351182364,1738399851260,-500.0,0.00016849,2]
[351182365,1738399851271,-500.0,0.00016849,2]
[351182366,1738399851280,-500.0,0.00016849,2]
[351182367,1738399851290,-634.96038925,0.00016849,2]
[351182368,1738399851301,-500.0,0.00016849,2]
[351182369,1738399851311,-500.0,0.00016849,2]
[351182370,1738399851323,-500.0,0.00016849,2]
[351182371,1738399851333,-500.0,0.00016849,2]
[351182372,1738399851343,-500.0,0.00016849,2]
[351182373,1738399851353,-500.0,0.00016849,2]
[351182374,1738399851363,-500.0,0.00016849,2]
[351182375,1738399851372,-500.0,0.00016849,2]
[351182376,1738399851382,-500.0,0.00016849,2]
[351182377,1738399851392,-500.0,0.00016849,2]
[351182378,1738399851402,-500.0,0.00016849,2]
[351182379,1738399851411,-528.19,0.00016849,2]
[351182380,1738399851420,-500.0,0.00016849,2]
[351182381,1738399851430,-500.0,0.00016849,2]
[351182382,1738399851440,-347.41,0.00016849,2]
[351182383,1738399851450,-500.0,0.00016849,2]
[351182384,1738399851459,-500.0,0.00016849,2]
[351182385,1738399851469,-500.0,0.00016849,2]
[351182386,1738399851479,-500.0,0.00016849,2]
[351182387,1738399851488,-466.98601137,0.00016849,2]
[351182388,1738399851498,-500.0,0.00016849,2]
[351182389,1738399851508,-525.68,0.00016849,2]
[351182390,1738399851518,-500.0,0.00016849,2]
[351182391,1738399851527,-761.75,0.00016849,2]
[351182392,1738399851537,-500.0,0.00016849,2]
[351182393,1738399851546,-620.94,0.00016849,2]
[351182394,1738399851556,-500.0,0.00016849,2]
[351182395,1738399851565,-500.0,0.00016849,2]
[351182396,1738399851577,-500.0,0.00016849,2]
[351182397,1738399851586,-688.17,0.00016849,2]
[351182398,1738399851596,-520.63,0.00016849,2]
[351182399,1738399851605,-500.0,0.00016849,2]
[351182400,1738399851615,-500.0,0.00016849,2]
[351182401,1738399851625,-546.29,0.00016849,2]
[351182402,1738399851635,-500.0,0.00016849,2]
[351182403,1738399851653,-500.0,0.00016849,2]
[351182404,1738399851662,-500.0,0.00016849,2]
[351182405,1738399851671,-500.0,0.00016849,2]
[351182406,1738399851682,-500.0,0.00016849,2]
[351182407,1738399851695,-706.17,0.00016849,2]
[351182408,1738399851704,-335.54411066,0.00016849,2]
[351182409,1738399851714,-500.0,0.00016849,2]
[351182410,1738399851724,-500.0,0.00016849,2]
[351182411,1738399851734,-500.0,0.00016849,2]
[351182412,1738399851743,-500.0,0.00016849,2]
[351182413,1738399851752,-500.0,0.00016849,2]
[351182414,1738399851762,-500.0,0.00016849,2]
[351182415,1738399851772,-500.0,0.00016849,2]
[351182416,1738399851781,-825.63,0.00016849,2]
[351182417,1738399851790,-598.4,0.00016849,2]
[351182418,1738399851799,-500.0,0.00016849,2]
[351182419,1738399851809,-500.0,0.00016849,2]
[351182420,1738399851819,-500.0,0.00016849,2]
[351182421,1738399851829,-726.45,0.00016849,2]
[351182422,1738399851839,-500.0,0.00016849,2]
[351182423,1738399851849,-200.0,0.00016849,2]
[351182424,1738399851859,-500.0,0.00016849,2]
[351182425,1738399851868,-1157.25,0.00016849,2]
[351182426,1738399851877,-500.0,0.00016849,2]
[351182427,1738399851887,-500.0,0.00016849,2]
[351182428,1738399851896,-450.302109,0.00016849,2]
[351182429,1738399851906,-260.28850225,0.00016849,2]
[351182430,1738399851915,-500.0,0.00016849,2]
[351182431,1738399851924,-500.0,0.00016849,2]
[351182432,1738399851934,-500.0,0.00016849,2]
[351182433,1738399851943,-623.01,0.00016849,2]
[351182434,1738399851952,-500.0,0.00016849,2]
[351182435,1738399851961,-1237.86,0.00016849,2]
[351182436,1738399851971,-500.0,0.00016849,2]
[351182437,1738399851981,-794.39,0.00016849,2]
[351182438,1738399851990,-500.0,0.00016849,2]
[351182439,1738399851999,-500.0,0.00016849,2]
[351182440,1738399852010,-500.0,0.00016849,2]
[351182441,1738399852019,-900.16,0.00016849,2]
[351182442,1738399852028,-1144.92,0.00016849,2]
[351182443,1738399852037,-637.28018648,0.00016849,2]
[351182444,1738399852046,-445.813525,0.00016849,2]
[351182445,1738399852056,-500.0,0.00016849,2]
[351182446,1738399852065,-1330.79,0.00016849,2]
[351182447,1738399852075,-873.52,0.00016849,2]
[351182448,1738399852084,-1097.36,0.00016849,2]
[351182449,1738399852094,-500.0,0.00016849,2]
[351182450,1738399852103,-911.22,0.00016849,2]
[351182451,1738399852112,-796.08,0.00016849,2]
[351182452,1738399852121,-500.0,0.00016849,2]
[351182453,1738399852131,-500.0,0.00016849,2]
[351182454,1738399852140,-500.0,0.00016849,2]
[351182455,1738399852150,-2074.04,0.00016849,2]
[351182456,1738399852159,-667.67,0.00016849,2]
[351182457,1738399852169,-556.44753551,0.00016849,2]
[351182458,1738399852179,-500.0,0.00016849,2]
[351182459,1738399852188,-1244.07,0.00016849,2]
[351182460,1738399852198,-500.0,0.00016849,2]
[351182461,1738399852208,-2707.78,0.00016849,2]
[351182462,1738399852218,-796.81,0.00016849,2]
[351182463,1738399852227,-1529.22,0.00016849,2]
[351182464,1738399852236,-500.0,0.00016849,2]
[351182465,1738399852246,-917.48,0.00016849,2]
[351182466,1738399852255,-500.0,0.00016849,2]
[351182467,1738399852266,-1471.11,0.00016849,2]
[351182468,1738399852276,-295.12619917,0.00016849,2]
[351182469,1738399852285,-1512.35,0.00016849,2]
[351182470,1738399852294,-500.0,0.00016849,2]
[351182471,1738399852304,-500.0,0.00016849,2]
[351182472,1738399852313,-818.52,0.00016849,2]
[351182473,1738399852325,-2864.2,0.00016849,2]
[351182474,1738399852334,-1217.27,0.00016849,2]
[351182475,1738399852344,-961.91,0.00016849,2]
[351182476,1738399852354,-1419.87,0.00016849,2]
[351182477,1738399852363,-500.0,0.00016849,2]
[351182478,1738399852373,-580.81,0.00016849,2]
[351182479,1738399852382,-500.0,0.00016849,2]
[351182480,1738399852392,-500.0,0.00016849,2]
[351182481,1738399852402,-500.0,0.00016849,2]
[351182482,1738399852412,-500.0,0.00016849,2]
[351182483,1738399852421,-902.94,0.00016849,2]
[351182484,1738399852431,-1453.2,0.00016849,2]
[351182485,1738399852440,-500.0,0.00016849,2]
[351182486,1738399852450,-500.0,0.00016849,2]
[351182487,1738399852460,-798.92,0.00016849,2]
[351182488,1738399852469,-2365.3,0.00016849,2]
[351182489,1738399852479,-500.0,0.00016849,2]
[351182490,1738399852489,-779.0,0.00016849,2]
[351182491,1738399852499,-633.18,0.00016849,2]
[351182492,1738399852508,-507.66,0.00016849,2]
[351182493,1738399852517,-500.0,0.00016849,2]
[351182494,1738399852527,-1043.13,0.00016849,2]
[351182495,1738399852537,-500.0,0.00016849,2]
[351182496,1738399852546,-1567.89,0.00016849,2]
[351182497,1738399852556,-910.38,0.00016849,2]
[351182498,1738399852565,-500.0,0.00016849,2]
[351182499,1738399852576,-1273.65,0.00016849,2]
[351182500,1738399852585,-500.0,0.00016849,2]
[351182501,1738399852595,-879.55,0.00016849,2]
[351182502,1738399852604,-601.78,0.00016849,2]
[351182503,1738399852614,-1015.54,0.00016849,2]
[351182504,1738399852624,-500.0,0.00016849,2]
[351182505,1738399852634,-2958.79,0.00016849,2]
[351182506,1738399852643,-500.0,0.00016849,2]
[351182507,1738399852654,-761.06,0.00016849,2]
[351182508,1738399852664,-572.04,0.00016849,2]